bitfinex/quotes_SOLUSD_20220119
["timestamp","ask_amount","ask_price","bid_price","bid_amount"]
[1642581997652,0.25,133.73,133.67,25.63050802]
[1642581998046,0.25,133.73,133.68,6.0]
[1642581998246,11.4714,133.73,133.68,6.0]
[1642581998447,58.25334449,133.73,133.68,6.0]
[1642581998848,11.4714,133.73,133.68,6.0]
[1642582000352,14.2136,133.72,133.65,6.0]
[1642582000550,11.2226,133.72,133.66,2.991]
[1642582000750,11.2226,133.72,133.65,9.241]
[1642582000951,11.2226,133.72,133.65,3.241]
[1642582001150,11.2226,133.72,133.66,38.7230481]
[1642582002051,0.25,133.73,133.66,38.7230481]
[1642582002253,0.25,133.73,133.67,0.25]
[1642582002555,2.991,133.74,133.67,0.25]
[1642582002751,40.3937,133.77,133.67,0.25]
[1642582002954,52.63122458,133.76,133.67,0.25]
[1642582003152,2.991,133.75,133.67,0.25]
[1642582003555,11.4712,133.74,133.67,0.25]
[1642582003755,11.4712,133.74,133.67,3.241]
[1642582003955,11.4712,133.74,133.67,14.041]
[1642582004556,59.90384522,133.73,133.67,14.041]
[1642582004755,59.90384522,133.73,133.67,11.05]
[1642582004956,11.2214,133.73,133.67,11.05]
[1642582005360,0.25,133.74,133.67,11.05]
[1642582005557,0.25,133.74,133.68,2.991]
[1642582005757,11.4704,133.75,133.67,11.05]
[1642582005966,11.4704,133.75,133.67,14.041]
[1642582006162,8.991,133.76,133.67,14.041]
[1642582006358,6.0,133.76,133.67,14.041]
[1642582006559,2.991,133.78,133.68,82.39552358]
[1642582006762,2.991,133.79,133.69,100.1785]
[1642582007061,7.06831612,133.81,133.69,124.53932358]
[1642582007360,37.92500261,133.8,133.7,29.6650222]
[1642582007559,2.99,133.79,133.71,2.99]
[1642582007762,11.2163,133.79,133.71,3.24]
[1642582008959,57.59723784,133.78,133.71,2.99]
[1642582009158,11.4673,133.78,133.7,51.6821222]
[1642582010365,14.4573,133.78,133.7,51.6821222]
[1642582010864,14.4573,133.78,133.7,40.4650222]
[1642582011263,0.25,133.78,133.7,40.4650222]
[1642582011463,11.2164,133.79,133.71,0.25]
[1642582011665,4.07831612,133.82,133.71,0.25]
[1642582011666,7.06831612,133.82,133.71,0.25]
[1642582011865,7.06831612,133.82,133.72,10.8]
[1642582012066,1.20428428,133.83,133.75,11.213]
[1642582012367,4.19428428,133.83,133.76,29.6650222]
[1642582012566,48.75583305,133.83,133.76,29.6650222]
[1642582012767,2.989,133.82,133.76,29.6650222]
[1642582013165,0.25,133.81,133.76,29.6650222]
[1642582015994,14.2028,133.82,133.76,29.6650222]
[1642582016199,0.25,133.81,133.76,29.6650222]
[1642582022305,0.25,133.81,133.74,46.0836]
[1642582022604,11.4647,133.81,133.72,2.989]
[1642582022804,11.4647,133.81,133.7,26.6439]
[1642582022805,2.99,133.8,133.7,26.6439]
[1642582023005,2.99,133.8,133.7,23.6539]
[1642582023204,0.25,133.79,133.67,25.9792]
[1642582023407,2.991,133.78,133.67,58.0895304]
[1642582023605,6.0,133.77,133.67,35.1003304]
[1642582023806,11.2211,133.74,133.67,35.1003304]
[1642582024207,0.25,133.73,133.67,35.1003304]
[1642582025206,0.25,133.75,133.67,35.1003304]
[1642582025607,11.4697,133.75,133.66,25.7707]
[1642582025809,2.991,133.74,133.66,22.7807]
[1642582026207,0.25,133.73,133.66,22.7807]
[1642582026607,0.25,133.73,133.66,63.95220381]
[1642582027207,0.25,133.74,133.66,63.95220381]
[1642582027408,11.2225,133.72,133.66,63.95220381]
[1642582027608,57.32611027,133.72,133.66,63.95220381]
[1642582027809,0.25,133.71,133.66,63.95220381]
[1642582028009,0.25,133.71,133.66,22.7807]
[1642582028209,8.991,133.75,133.66,22.7807]
[1642582028512,2.991,133.75,133.66,44.8013]
[1642582028709,0.25,133.74,133.66,44.8013]
[1642582028910,0.25,133.74,133.67,2.991]
[1642582029112,0.25,133.74,133.68,42.94223356]
[1642582030114,0.25,133.75,133.68,42.94223356]
[1642582030322,3.241,133.75,133.68,42.94223356]
[1642582030514,11.2205,133.74,133.67,14.4607]
[1642582030713,0.25,133.73,133.67,14.4607]
[1642582030913,2.991,133.75,133.67,11.4697]
[1642582031120,2.991,133.75,133.67,14.4607]
[1642582031514,2.991,133.75,133.67,58.41600583]
[1642582032116,49.02650138,133.76,133.67,58.41600583]
[1642582032316,2.991,133.75,133.67,58.41600583]
[1642582032516,11.2198,133.75,133.67,47.19630583]
[1642582032715,11.2198,133.75,133.67,3.241]
[1642582033117,6.25,133.74,133.67,2.991]
[1642582033317,0.25,133.73,133.67,2.991]
[1642582033518,11.2213,133.74,133.67,2.991]
[1642582033719,0.25,133.73,133.67,44.96489867]
[1642582033918,3.241,133.75,133.67,44.96489867]
[1642582034116,0.25,133.75,133.67,44.96489867]
[1642582035419,11.4697,133.75,133.67,56.18459867]
[1642582035819,11.4697,133.75,133.67,44.96489867]
[1642582036221,11.4697,133.75,133.68,0.25]
[1642582038019,11.2197,133.75,133.68,0.25]
[1642582038619,11.2197,133.75,133.69,2.991]
[1642582039022,11.2229,133.72,133.67,2.991]
[1642582039219,11.2229,133.72,133.67,6.0]
[1642582039622,0.25,133.71,133.67,6.0]
[1642582039819,42.0236785,133.71,133.67,6.0]
[1642582040421,11.2241,133.7,133.67,6.0]
[1642582040822,11.2241,133.7,133.68,6.06439994]
[1642582041021,3.241,133.73,133.68,6.06439994]
[1642582041427,11.223,133.72,133.68,6.06439994]
[1642582041923,0.25,133.71,133.68,6.06439994]
[1642582042726,3.241,133.71,133.68,6.06439994]
[1642582043124,3.241,133.71,133.67,6.0]
[1642582043326,3.241,133.71,133.66,6.0]
[1642582043523,11.2242,133.7,133.66,6.0]
[1642582043724,11.2242,133.7,133.65,6.0]
[1642582044926,35.07894582,133.69,133.65,6.0]
[1642582045126,46.30364582,133.69,133.64,24.6618]
[1642582045325,46.30364582,133.69,133.62,2.992]
[1642582045526,3.242,133.68,133.61,49.31332358]
[1642582045726,3.242,133.68,133.61,47.8378]
[1642582045925,3.242,133.68,133.59,2.992]
[1642582045926,6.0,133.67,133.59,2.992]
[1642582046128,45.78046405,133.66,133.59,2.992]
[1642582046326,57.00816405,133.66,133.59,2.992]
[1642582046528,57.00816405,133.66,133.59,4.46752358]
[1642582046728,57.00816405,133.66,133.6,0.25]
[1642582046926,57.00816405,133.66,133.6,6.0]
[1642582047325,57.00816405,133.66,133.6,27.43318899]
[1642582048327,57.00816405,133.66,133.61,0.25]
[1642582048828,11.2277,133.66,133.61,0.25]
[1642582049228,11.2277,133.66,133.59,20.2186]
[1642582049531,11.4783,133.65,133.6,6.0]
[1642582050331,57.76573774,133.65,133.59,6.0]
[1642582050532,57.76573774,133.65,133.59,6.25]
[1642582051033,11.4783,133.65,133.59,6.25]
[1642582051235,11.2271,133.67,133.59,6.25]
[1642582051435,11.2271,133.67,133.6,2.993]
[1642582051834,11.2271,133.67,133.61,0.25]
[1642582052036,11.2271,133.67,133.6,2.993]
[1642582052234,11.2292,133.65,133.6,2.993]
[1642582052437,2.993,133.64,133.6,2.993]
[1642582052635,3.243,133.64,133.54,10.8]
[1642582052837,6.0,133.63,133.53,2.994]
[1642582053038,45.55338733,133.62,133.54,38.72385617]
[1642582053238,45.80338733,133.62,133.54,38.72385617]
[1642582053538,11.2316,133.61,133.52,8.994]
[1642582053739,0.25,133.6,133.52,8.994]
[1642582054837,40.99150024,133.58,133.52,8.994]
[1642582055140,40.99150024,133.58,133.52,6.0]
[1642582055437,0.25,133.57,133.52,6.0]
[1642582055638,0.25,133.57,133.49,26.2848]
[1642582055939,3.245,133.57,133.49,26.2848]
[1642582056139,2.995,133.57,133.5,0.25]
[1642582056337,40.99150024,133.58,133.51,2.995]
[1642582057539,8.995,133.57,133.51,2.995]
[1642582057739,9.245,133.57,133.51,2.995]
[1642582058539,11.2364,133.56,133.51,2.995]
[1642582058741,39.30406946,133.55,133.51,2.995]
[1642582058940,42.29906946,133.55,133.49,23.2908]
[1642582059141,39.30406946,133.55,133.49,23.2908]
[1642582059443,39.30406946,133.55,133.47,25.9148]
[1642582059640,39.30406946,133.55,133.47,22.9198]
[1642582059641,2.996,133.54,133.47,22.9198]
[1642582059844,11.2386,133.53,133.47,22.9198]
[1642582060041,11.4886,133.53,133.47,58.11754113]
[1642582060243,39.30406946,133.55,133.48,0.25]
[1642582060440,39.30406946,133.55,133.48,3.246]
[1642582060642,39.05406946,133.55,133.48,3.246]
[1642582060842,2.996,133.56,133.48,3.246]
[1642582061042,2.995,133.58,133.48,3.246]
[1642582061241,2.995,133.58,133.48,14.482]
[1642582061242,11.2357,133.56,133.48,14.482]
[1642582061845,2.995,133.58,133.48,14.482]
[1642582062048,2.995,133.58,133.49,6.0]
[1642582062244,2.995,133.58,133.51,11.2335]
[1642582062245,11.234,133.58,133.51,11.2335]
[1642582062444,11.234,133.58,133.52,2.995]
[1642582062646,11.234,133.58,133.52,3.245]
[1642582062844,11.234,133.58,133.52,36.43532917]
[1642582063046,11.234,133.58,133.52,36.18532917]
[1642582063850,14.229,133.58,133.52,33.19032917]
[1642582065170,0.25,133.57,133.5,25.4963]
[1642582065368,0.25,133.57,133.5,22.5013]
[1642582065568,11.2363,133.56,133.5,22.5013]
[1642582066169,35.59184707,133.55,133.5,22.5013]
[1642582066369,35.59184707,133.55,133.52,5.121689]
[1642582066568,46.82864707,133.55,133.52,5.121689]
[1642582066769,0.25,133.54,133.52,5.121689]
[1642582066969,46.82864707,133.55,133.52,5.121689]
[1642582067170,0.25,133.54,133.52,5.121689]
[1642582068473,11.2368,133.55,133.52,5.121689]
[1642582069676,0.25,133.54,133.52,5.121689]
[1642582071277,3.245,133.54,133.52,5.121689]
[1642582071875,43.97420981,133.53,133.52,5.121689]
[1642582072276,44.22420981,133.53,133.52,5.121689]
[1642582072479,50.22420981,133.53,133.52,5.121689]
[1642582072675,53.21920981,133.53,133.52,5.121689]
[1642582073076,53.21920981,133.53,133.46,2.995]
[1642582073276,3.246,133.52,133.46,2.995]
[1642582073476,11.2401,133.51,133.46,2.995]
[1642582073679,0.25,133.5,133.46,2.995]
[1642582074079,2.996,133.52,133.46,2.995]
[1642582074279,43.97420981,133.53,133.45,45.83405813]
[1642582074479,55.21240981,133.53,133.46,11.4883]
[1642582074678,0.25,133.52,133.46,11.4883]
[1642582075082,0.25,133.52,133.45,2.996]
[1642582075278,2.996,133.51,133.44,47.8773]
[1642582075679,0.25,133.5,133.44,47.8773]
[1642582075883,11.4907,133.5,133.44,47.8773]
[1642582076080,44.71737308,133.48,133.44,47.8773]
[1642582076280,0.25,133.47,133.41,50.57156358]
[1642582076580,0.25,133.47,133.42,6.0]
[1642582077583,55.96047308,133.48,133.42,6.0]
[1642582077782,2.996,133.49,133.42,17.2423]
[1642582078082,11.2408,133.5,133.43,2.997]
[1642582078281,2.997,133.53,133.43,2.997]
[1642582078480,2.996,133.56,133.44,24.4144]
[1642582078684,2.996,133.56,133.45,2.996]
[1642582078981,45.23441102,133.55,133.48,11.2366]
[1642582079181,45.23441102,133.55,133.48,48.00734459]
[1642582080483,14.2328,133.56,133.48,48.00734459]
[1642582080683,0.25,133.55,133.49,3.245]
[1642582080882,11.2372,133.55,133.49,0.495]
[1642582081082,14.2322,133.55,133.48,36.77074459]
[1642582081284,14.2322,133.55,133.46,75.0969]
[1642582082284,45.78361481,133.54,133.48,11.2372]
[1642582082485,2.996,133.53,133.47,37.65612545]
[1642582082686,45.78361481,133.54,133.47,37.65612545]
[1642582083487,45.78361481,133.54,133.47,35.15612545]
[1642582084092,45.78361481,133.54,133.46,37.6448]
[1642582084287,2.996,133.53,133.46,34.6498]
[1642582084487,2.996,133.53,133.47,11.2375]
[1642582084687,0.25,133.52,133.47,11.2375]
[1642582084887,2.996,133.53,133.47,11.2375]
[1642582085292,0.25,133.52,133.47,11.2375]
[1642582086591,0.25,133.52,133.47,34.00907215]
[1642582086791,2.996,133.53,133.47,34.00907215]
[1642582086999,61.5776,133.57,133.47,34.00907215]
[1642582087000,2.996,133.56,133.47,34.00907215]
[1642582087193,2.996,133.56,133.47,37.00407215]
[1642582087194,0.25,133.55,133.47,37.00407215]
[1642582087799,48.24031007,133.55,133.47,37.00407215]
[1642582088695,2.996,133.54,133.47,37.00407215]
[1642582089096,0.25,133.53,133.47,37.00407215]
[1642582089997,2.996,133.54,133.48,1.47552358]
[1642582090196,2.996,133.56,133.49,11.2354]
[1642582090624,0.25,133.55,133.49,11.2354]
[1642582091426,39.96686723,133.56,133.49,11.2354]
[1642582092625,42.96186723,133.56,133.49,11.2354]
[1642582092827,0.25,133.55,133.49,11.2354]
[1642582094233,0.25,133.55,133.49,14.2304]
[1642582094433,0.25,133.55,133.5,40.06042231]
[1642582094633,0.25,133.55,133.5,51.29542231]
[1642582095531,0.25,133.55,133.5,11.235]
[1642582098035,2.995,133.54,133.48,2.11138998]
[1642582098236,0.25,133.53,133.45,2.11138998]
[1642582098438,2.996,133.52,133.44,2.11138998]
[1642582098634,6.0,133.51,133.44,2.11138998]
[1642582098835,47.39061846,133.5,133.44,36.3886405]
[1642582099134,2.996,133.5,133.44,36.3886405]
[1642582099336,2.996,133.52,133.44,36.3886405]
[1642582099536,12.5738939,133.57,133.45,11.2399]
[1642582099537,3.246,133.54,133.45,11.2399]
[1642582099736,0.25,133.53,133.46,24.3937]
[1642582099935,0.25,133.53,133.46,30.3937]
[1642582100135,0.25,133.53,133.47,34.6211188]
[1642582100940,11.4877,133.54,133.47,34.6211188]
[1642582101135,14.4837,133.54,133.47,34.6211188]
[1642582101337,14.4837,133.54,133.46,30.3937]
[1642582101937,14.4837,133.54,133.46,41.6327]
[1642582102340,14.4837,133.54,133.46,30.3937]
[1642582103038,6.0,133.53,133.46,30.3937]
[1642582103238,11.2406,133.51,133.46,30.3937]
[1642582103443,2.996,133.5,133.46,6.0]
[1642582103641,3.246,133.5,133.44,6.0]
[1642582103839,0.25,133.5,133.44,6.25]
[1642582104039,40.1096753,133.5,133.44,6.25]
[1642582104240,40.1096753,133.5,133.44,17.4906]
[1642582104641,40.1096753,133.5,133.44,18.96254936]
[1642582104840,39.8596753,133.5,133.44,18.96254936]
[1642582105042,39.8596753,133.5,133.44,49.08890317]
[1642582105341,39.8596753,133.5,133.44,18.96254936]
[1642582105742,39.8596753,133.5,133.44,17.4906]
[1642582106343,39.8596753,133.5,133.44,65.69174143]
[1642582106743,11.2406,133.51,133.44,65.69174143]
[1642582106944,2.996,133.53,133.44,65.69174143]
[1642582107245,2.996,133.55,133.48,11.237]
[1642582107748,0.25,133.54,133.49,22.80861787]
[1642582107945,2.995,133.55,133.49,22.80861787]
[1642582108548,2.995,133.55,133.47,22.7524]
[1642582108746,2.995,133.55,133.48,6.25]
[1642582109547,2.995,133.55,133.49,11.2365]
[1642582109748,2.995,133.55,133.5,31.39451746]
[1642582109950,2.995,133.57,133.5,31.64451746]
[1642582110149,2.995,133.58,133.5,32.86646682]
[1642582110349,2.995,133.58,133.51,0.25]
[1642582110751,43.85143054,133.57,133.51,0.25]
[1642582110953,43.85143054,133.57,133.51,11.4846]
[1642582111352,3.245,133.56,133.49,2.995]
[1642582111552,9.245,133.56,133.49,2.995]
[1642582111752,20.045,133.56,133.49,2.995]
[1642582111953,21.97913123,133.56,133.49,2.995]
[1642582112752,33.21643123,133.56,133.49,2.995]
[1642582113951,33.21643123,133.56,133.44,2.995]
[1642582114152,74.92,133.55,133.44,9.245]
[1642582114352,58.91443616,133.54,133.46,11.2389]
[1642582114553,56.16843616,133.54,133.46,11.2389]
[1642582114752,3.246,133.53,133.46,43.06860981]
[1642582114953,2.996,133.53,133.46,43.06860981]
[1642582115159,2.996,133.55,133.47,0.25]
[1642582115354,2.996,133.58,133.49,11.2354]
[1642582115654,2.996,133.58,133.5,2.995]
[1642582115856,2.996,133.58,133.5,3.245]
[1642582116054,39.22045736,133.58,133.51,39.18004949]
[1642582116256,0.25,133.57,133.51,39.18004949]
[1642582116453,0.25,133.57,133.52,11.2335]
[1642582116689,39.22045736,133.58,133.52,11.2335]
[1642582117254,2.996,133.58,133.52,11.2335]
[1642582117453,1.93413123,133.61,133.52,86.1535]
[1642582117654,1.93413123,133.61,133.53,6.25]
[1642582117854,38.80338155,133.64,133.55,11.2287]
[1642582118057,2.994,133.63,133.56,6.0]
[1642582118257,44.94692693,133.62,133.56,6.25]
[1642582119558,44.94692693,133.62,133.57,11.2298]
[1642582120359,4.92813123,133.66,133.58,0.25]
[1642582120559,4.92813123,133.66,133.58,11.2288]
[1642582120761,1.93413123,133.66,133.59,3.243]
[1642582120961,4.92713123,133.68,133.58,24.67]
[1642582121160,1.93413123,133.68,133.58,24.92]
[1642582121364,37.79566017,133.67,133.59,45.18004949]
[1642582121759,0.25,133.66,133.59,45.18004949]
[1642582121959,0.25,133.66,133.6,0.25]
[1642582122362,0.25,133.66,133.6,11.4767]
[1642582122660,0.25,133.66,133.58,24.67]
[1642582122964,2.993,133.65,133.58,24.67]
[1642582123161,0.25,133.64,133.58,24.67]
[1642582123361,38.2351118,133.64,133.58,24.67]
[1642582124562,38.2351118,133.64,133.59,11.2281]
[1642582124763,38.2351118,133.64,133.59,11.4781]
[1642582126564,2.993,133.66,133.59,11.4781]
[1642582126766,74.94283123,133.7,133.59,11.4781]
[1642582126767,2.993,133.69,133.59,11.4781]
[1642582127563,48.65948268,133.68,133.59,43.21373882]
[1642582128166,48.65948268,133.68,133.59,11.4781]
[1642582128568,59.88598268,133.68,133.59,0.25]
[1642582128768,3.243,133.67,133.59,6.25]
[1642582129169,3.243,133.67,133.58,47.8201]
[1642582129371,80.92,133.66,133.58,47.8201]
[1642582129570,2.993,133.65,133.54,33.6538]
[1642582129771,3.243,133.65,133.56,6.0]
[1642582129971,3.243,133.65,133.55,6.0]
[1642582130171,39.59839933,133.64,133.55,6.0]
[1642582130372,2.994,133.63,133.56,0.25]
[1642582130574,3.244,133.63,133.56,0.25]
[1642582130770,3.244,133.63,133.54,2.994]
[1642582130971,3.244,133.63,133.55,0.25]
[1642582131572,14.4766,133.63,133.55,0.25]
[1642582132074,14.2266,133.63,133.55,0.25]
[1642582132671,14.2266,133.63,133.54,11.2323]
[1642582132874,14.2266,133.63,133.53,69.4089]
[1642582133075,14.2266,133.63,133.53,58.1758]
[1642582133274,11.2347,133.6,133.53,52.1758]
[1642582133876,36.44198294,133.59,133.53,52.1758]
[1642582134078,39.43598294,133.59,133.53,52.1758]
[1642582134275,36.44198294,133.59,133.54,0.25]
[1642582135674,36.44198294,133.59,133.53,60.415]
[1642582135874,39.43598294,133.59,133.53,60.415]
[1642582136076,39.43598294,133.59,133.54,6.0]
[1642582138879,39.43598294,133.59,133.53,60.415]
[1642582139079,36.44198294,133.59,133.53,60.415]
[1642582139711,0.25,133.58,133.53,60.415]
[1642582139910,3.245,133.58,133.53,49.1818]
[1642582140510,2.995,133.58,133.53,49.1818]
[1642582141012,2.995,133.58,133.48,4.46694936]
[1642582141218,2.995,133.58,133.48,22.9237]
[1642582141219,0.25,133.57,133.48,22.9237]
[1642582141412,2.995,133.56,133.46,24.81718998]
[1642582141612,2.995,133.56,133.46,22.7058]
[1642582141812,0.25,133.55,133.46,22.7058]
[1642582142011,2.996,133.54,133.46,22.7058]
[1642582142214,11.4896,133.53,133.46,22.7058]
[1642582142412,49.11818135,133.52,133.47,0.25]
[1642582143713,0.25,133.51,133.46,33.9449]
[1642582144414,0.25,133.51,133.46,22.7058]
[1642582144615,0.25,133.51,133.46,33.9446]
[1642582144817,4.72768505,133.56,133.47,2.996]
[1642582145914,40.69208422,133.55,133.48,33.86292098]
[1642582146115,40.69208422,133.55,133.48,34.11292098]
[1642582146515,40.69208422,133.55,133.49,11.2364]
[1642582146715,4.72768505,133.56,133.5,0.25]
[1642582146916,1.73168505,133.56,133.5,3.245]
[1642582147116,1.73168505,133.56,133.5,0.25]
[1642582148416,1.73168505,133.56,133.51,11.2343]
[1642582148617,1.73168505,133.56,133.52,37.14683832]
[1642582148818,1.73168505,133.56,133.52,37.39683832]
[1642582149816,1.73168505,133.56,133.49,33.9727]
[1642582150022,1.73168505,133.56,133.51,11.2344]
[1642582150818,1.73168505,133.56,133.51,47.16038172]
[1642582151517,1.73168505,133.56,133.52,11.4838]
[1642582151719,1.73168505,133.56,133.52,17.4838]
[1642582153118,1.73168505,133.56,133.52,6.0]
[1642582153821,1.73168505,133.56,133.51,11.2348]
[1642582154020,1.73168505,133.56,133.52,6.0]
[1642582154218,1.73168505,133.56,133.53,0.25]
[1642582154419,1.73168505,133.56,133.54,6.06439994]
[1642582160129,1.73168505,133.56,133.54,36.60571441]
[1642582160327,4.92913123,133.62,133.54,36.60571441]
[1642582160328,4.92913123,133.62,133.55,36.25]
[1642582160526,1.93413123,133.63,133.55,45.245]
[1642582160727,2.994,133.62,133.55,67.0543]
[1642582161027,2.994,133.62,133.55,68.52624936]
[1642582161426,2.994,133.62,133.55,79.75694936]
[1642582161631,2.994,133.62,133.55,165.47694936]
[1642582161831,52.13727967,133.65,133.57,40.46844483]
[1642582162030,52.13727967,133.65,133.58,6.0]
[1642582162231,49.14327967,133.65,133.58,6.25]
[1642582163430,49.14327967,133.65,133.58,11.4778]
[1642582163629,49.14327967,133.65,133.59,6.0]
[1642582164030,49.14327967,133.65,133.58,6.25]
[1642582165130,2.993,133.66,133.58,6.25]
[1642582165557,2.993,133.66,133.59,11.2277]
[1642582165759,6.16024612,133.67,133.6,0.25]
[1642582165956,6.16024612,133.67,133.6,6.25]
[1642582166158,43.62046389,133.67,133.6,36.85780006]
[1642582166960,1.23311489,133.67,133.61,11.2261]
[1642582167158,1.23311489,133.67,133.62,6.0]
[1642582167359,1.23311489,133.67,133.62,0.25]
[1642582167560,1.23311489,133.67,133.6,36.85780006]
[1642582168461,1.23311489,133.67,133.62,11.2256]
[1642582168662,1.23311489,133.67,133.63,6.0]
[1642582170866,2.993,133.68,133.63,6.0]
[1642582171063,4.92613123,133.7,133.64,0.25]
[1642582171266,4.42613123,133.72,133.64,3.242]
[1642582171465,2.991,133.73,133.64,33.8171]
[1642582171865,51.26669474,133.73,133.65,40.40195924]
[1642582172063,48.27569474,133.73,133.67,11.2213]
[1642582172262,51.26769474,133.73,133.67,11.2213]
[1642582172465,51.26769474,133.73,133.68,6.0]
[1642582172762,51.26769474,133.73,133.64,51.2197]
[1642582172968,51.26769474,133.73,133.64,47.9787]
[1642582173163,0.25,133.72,133.65,6.0]
[1642582173366,2.992,133.71,133.65,6.0]
[1642582173564,2.992,133.71,133.65,42.59670277]
[1642582173764,51.26769474,133.73,133.65,42.59670277]
[1642582174564,51.26769474,133.73,133.65,17.2229]
[1642582174763,51.26769474,133.73,133.66,0.25]
[1642582174963,51.26769474,133.73,133.65,6.0]
[1642582175163,0.25,133.72,133.65,6.0]
[1642582175364,2.992,133.71,133.65,6.0]
[1642582175566,43.85896735,133.7,133.65,6.0]
[1642582179671,55.08396735,133.7,133.65,6.0]
[1642582180071,0.25,133.69,133.65,6.0]
[1642582180470,55.08396735,133.7,133.65,6.0]
[1642582180675,0.25,133.69,133.65,6.0]
[1642582183672,55.08396735,133.7,133.65,6.0]
[1642582184972,43.85896735,133.7,133.65,6.0]
[1642582185373,43.85896735,133.7,133.64,47.9787]
[1642582185572,43.85896735,133.7,133.65,6.0]
[1642582187275,43.85896735,133.7,133.64,47.9787]
[1642582187874,55.08396735,133.7,133.64,47.9787]
[1642582188073,0.25,133.69,133.64,47.9787]
[1642582189274,43.85896735,133.7,133.64,47.9787]
[1642582189474,11.4758,133.69,133.64,47.9787]
[1642582190179,32.992,133.68,133.57,10.8]
[1642582190375,32.992,133.68,133.55,26.4617]
[1642582190376,43.792,133.68,133.55,26.4617]
[1642582190578,11.2291,133.66,133.55,23.4697]
[1642582190776,3.243,133.65,133.55,23.4697]
[1642582191077,43.1897035,133.64,133.56,57.14159344]
[1642582191275,2.994,133.63,133.56,54.14759344]
[1642582191479,2.994,133.64,133.56,54.14759344]
[1642582191675,11.2297,133.64,133.57,6.0]
[1642582191875,2.994,133.66,133.57,6.0]
[1642582192083,2.993,133.67,133.58,25.5332]
[1642582192275,2.993,133.69,133.58,25.5332]
[1642582192475,46.08048301,133.68,133.6,42.31056586]
[1642582192674,46.08048301,133.68,133.6,45.30356586]
[1642582192875,57.30758301,133.68,133.61,0.25]
[1642582193074,57.30758301,133.68,133.62,2.993]
[1642582193275,57.30758301,133.68,133.63,0.25]
[1642582193681,57.30758301,133.68,133.63,43.16689344]
[1642582194577,57.30758301,133.68,133.63,0.25]
[1642582195377,11.2271,133.68,133.63,0.25]
[1642582196378,2.993,133.7,133.63,43.94657352]
[1642582196576,2.992,133.71,133.63,43.94657352]
[1642582196776,7.07031612,133.73,133.64,2.992]
[1642582196978,2.992,133.73,133.64,31.7053]
[1642582197180,0.25,133.72,133.65,0.25]
[1642582197581,49.41307091,133.73,133.65,0.25]
[1642582198183,60.63517091,133.73,133.65,11.4728]
[1642582198385,60.63517091,133.73,133.66,39.99366144]
[1642582198584,57.64317091,133.73,133.66,39.99366144]
[1642582198784,57.64317091,133.73,133.67,0.25]
[1642582200417,15.89069542,133.74,133.67,11.4714]
[1642582200617,1.67829542,133.74,133.67,11.4714]
[1642582200824,1.67829542,133.74,133.68,6.0]
[1642582201219,3.241,133.73,133.68,6.0]
[1642582201417,3.241,133.73,133.67,6.0]
[1642582201621,11.2241,133.72,133.66,6.0]
[1642582201818,8.74861154,133.74,133.65,33.7386]
[1642582202019,2.992,133.72,133.65,30.7466]
[1642582202220,0.25,133.71,133.65,33.7386]
[1642582202419,0.25,133.71,133.65,30.7466]
[1642582202620,0.25,133.71,133.66,11.2221]